[Event "Titled Tuesday Blitz October 31 Early 2023"]
[White "NovoselovRoman"]
[Black "Witty_Alien"]
[WhiteElo "2546"]
[BlackElo "2232"]
[Result "1-0"]
[Round "3"]
[TimeControl "180+1"]
[Date "2023.10.31"]
[WhiteClock "0:00:20"]
[BlackClock "0:00:02"]
[Board "128"]

1. d4 {[%clk 0:03:00]}  e5 {[%clk 0:02:55]} 2. dxe5 {[%clk 0:03:00]}  d6 {[%clk 0:02:54]} 3. Nf3 {[%clk 0:02:58]}  Nc6 {[%clk 0:02:54]} 4. e4 {[%clk 0:02:55]}  Bg4 {[%clk 0:02:54]} 5. exd6 {[%clk 0:02:47]}  Bxd6 {[%clk 0:02:53]} 6. Be3 {[%clk 0:02:42]}  Nf6 {[%clk 0:02:52]} 7. Nbd2 {[%clk 0:02:42]}  Qd7 {[%clk 0:02:42]} 8. Bb5 {[%clk 0:02:40]}  O-O-O {[%clk 0:02:42]} 9. e5 {[%clk 0:02:18]}  Bxf3 {[%clk 0:02:17]} 10. Nxf3 {[%clk 0:02:16]}  Bb4+ {[%clk 0:01:40]} 11. c3 {[%clk 0:02:14]}  Qg4 {[%clk 0:01:39]} 12. Qe2 {[%clk 0:01:52]}  Nxe5 {[%clk 0:01:09]} 13. Nxe5 {[%clk 0:01:34]}  Qxg2 {[%clk 0:01:09]} 14. Qf3 {[%clk 0:01:33]}  Qxf3 {[%clk 0:00:52]} 15. Nxf3 {[%clk 0:01:33]}  Ba5 {[%clk 0:00:47]} 16. O-O {[%clk 0:00:42]}  h5 {[%clk 0:00:44]} 17. Rad1 {[%clk 0:00:40]}  h4 {[%clk 0:00:44]} 18. h3 {[%clk 0:00:40]}  a6 {[%clk 0:00:44]} 19. Bc4 {[%clk 0:00:38]}  c6 {[%clk 0:00:42]} 20. Bxf7 {[%clk 0:00:38]}  Rdf8 {[%clk 0:00:41]} 21. Be6+ {[%clk 0:00:38]}  Kb8 {[%clk 0:00:41]} 22. Ne5 {[%clk 0:00:34]}  Re8 {[%clk 0:00:36]} 23. Nd7+ {[%clk 0:00:33]}  Ka8 {[%clk 0:00:37]} 24. Nxf6 {[%clk 0:00:32]}  Rxe6 {[%clk 0:00:37]} 25. Ng4 {[%clk 0:00:31]}  Bc7 {[%clk 0:00:31]} 26. Rd7 {[%clk 0:00:32]}  Kb8 {[%clk 0:00:30]} 27. Rfd1 {[%clk 0:00:32]}  Rg6 {[%clk 0:00:21]} 28. Rf7 {[%clk 0:00:31]}  Rd8 {[%clk 0:00:17]} 29. Rxd8+ {[%clk 0:00:24]}  Bxd8 {[%clk 0:00:18]} 30. Kf1 {[%clk 0:00:24]}  a5 {[%clk 0:00:17]} 31. Ne5 {[%clk 0:00:24]}  Re6 {[%clk 0:00:15]} 32. Nd7+ {[%clk 0:00:21]}  Kc8 {[%clk 0:00:14]} 33. Nc5 {[%clk 0:00:20]}  Re5 {[%clk 0:00:10]} 34. Nxb7 {[%clk 0:00:20]}  Rd5 {[%clk 0:00:06]} 35. Nc5 {[%clk 0:00:17]}  Bb6 {[%clk 0:00:05]} 36. Ne4 {[%clk 0:00:17]}  Bxe3 {[%clk 0:00:04]} 37. fxe3 {[%clk 0:00:18]}  Re5 {[%clk 0:00:03]} 38. Rf4 {[%clk 0:00:16]}  g5 {[%clk 0:00:03]} 39. Rg4 {[%clk 0:00:17]}  Rf5+ {[%clk 0:00:04]} 40. Ke2 {[%clk 0:00:18]}  Rb5 {[%clk 0:00:05]} 41. b3 {[%clk 0:00:18]}  Kc7 {[%clk 0:00:05]} 42. Rxg5 {[%clk 0:00:18]}  Rb8 {[%clk 0:00:05]} 43. Rg7+ {[%clk 0:00:18]}  Kb6 {[%clk 0:00:06]} 44. c4 {[%clk 0:00:19]}  a4 {[%clk 0:00:06]} 45. bxa4 {[%clk 0:00:19]}  Ka5 {[%clk 0:00:07]} 46. Rg5+ {[%clk 0:00:19]}  Kxa4 {[%clk 0:00:07]} 47. Rc5 {[%clk 0:00:18]}  Rb6 {[%clk 0:00:08]} 48. Rh5 {[%clk 0:00:18]}  Ka3 {[%clk 0:00:08]} 49. Rxh4 {[%clk 0:00:18]}  Kxa2 {[%clk 0:00:08]} 50. Rg4 {[%clk 0:00:18]}  Rb4 {[%clk 0:00:08]} 51. Nd2 {[%clk 0:00:19]}  Kb2 {[%clk 0:00:06]} 52. Kd3 {[%clk 0:00:19]}  Kc1 {[%clk 0:00:06]} 53. Rg1+ {[%clk 0:00:19]}  Kb2 {[%clk 0:00:07]} 54. h4 {[%clk 0:00:20]}  Ra4 {[%clk 0:00:05]} 55. Rb1+ {[%clk 0:00:20]}  Ka2 {[%clk 0:00:05]} 56. Rh1 {[%clk 0:00:20]}  Ra3+ {[%clk 0:00:04]} 57. Kd4 {[%clk 0:00:20]}  c5+ {[%clk 0:00:03]} 58. Kxc5 {[%clk 0:00:20]}  Rd3 {[%clk 0:00:02]} 59. Ne4 {[%clk 0:00:20]}  Rd8 {[%clk 0:00:02]} 60. h5 {[%clk 0:00:20]}  Rc8+ {[%clk 0:00:02]} 61. Kd5 {[%clk 0:00:21]}  Kb3 {[%clk 0:00:03]} 62. h6 {[%clk 0:00:21]}  Ka2 {[%clk 0:00:03]} 63. h7 {[%clk 0:00:21]}  Rh8 {[%clk 0:00:04]} 64. Rh2+ {[%clk 0:00:17]}  Ka1 {[%clk 0:00:04]} 65. Kd4 {[%clk 0:00:17]}  Rd8+ {[%clk 0:00:03]} 66. Kc3 {[%clk 0:00:18]}  Rh8 {[%clk 0:00:01]} 67. Nc5 {[%clk 0:00:18]}  Rb8 {[%clk 0:00:01]} 68. Nb3+ {[%clk 0:00:18]}  Rxb3+ {[%clk 0:00:01]} 69. Kxb3 {[%clk 0:00:19]}  Kb1 {[%clk 0:00:02]} 70. Rh1# {[%clk 0:00:20]} 1-0


[Site "https://www.chess.com"]

[Event "Titled Tuesday Blitz October 31 Early 2023"]
[White "Rodriguez Dominguez, Melissa"]
[Black "Rama, Tejas"]
[WhiteFideId "3517560"]
[BlackFideId "30907381"]
[WhiteElo "2207"]
[BlackElo "2543"]
[Result "0-1"]
[Round "3"]
[TimeControl "180+1"]
[Date "2023.10.31"]
[WhiteClock "0:00:00"]
[BlackClock "0:00:20"]
[Board "129"]

1. e4 {[%clk 0:03:00]}  c5 {[%clk 0:02:58]} 2. Nf3 {[%clk 0:03:00]}  d6 {[%clk 0:02:57]} 3. d4 {[%clk 0:03:00]}  cxd4 {[%clk 0:02:58]} 4. Nxd4 {[%clk 0:03:01]}  Nf6 {[%clk 0:02:58]} 5. Nc3 {[%clk 0:03:02]}  Nc6 {[%clk 0:02:58]} 6. Bg5 {[%clk 0:03:00]}  e6 {[%clk 0:02:59]} 7. Qd2 {[%clk 0:02:54]}  a6 {[%clk 0:02:59]} 8. h4 {[%clk 0:02:49]}  Bd7 {[%clk 0:02:52]} 9. O-O-O {[%clk 0:02:47]}  Qc7 {[%clk 0:02:49]} 10. Bxf6 {[%clk 0:02:42]}  gxf6 {[%clk 0:02:49]} 11. f4 {[%clk 0:02:42]}  Be7 {[%clk 0:02:43]} 12. g4 {[%clk 0:02:41]}  Nxd4 {[%clk 0:02:29]} 13. Qxd4 {[%clk 0:02:40]}  Qc5 {[%clk 0:02:30]} 14. g5 {[%clk 0:02:30]}  Qxd4 {[%clk 0:02:19]} 15. Rxd4 {[%clk 0:02:28]}  O-O-O {[%clk 0:02:11]} 16. Bh3 {[%clk 0:02:22]}  fxg5 {[%clk 0:02:10]} 17. hxg5 {[%clk 0:02:21]}  e5 {[%clk 0:02:00]} 18. Rc4+ {[%clk 0:02:03]}  Kb8 {[%clk 0:02:00]} 19. Nd5 {[%clk 0:01:56]}  Bxh3 {[%clk 0:01:51]} 20. Rxh3 {[%clk 0:01:42]}  Rde8 {[%clk 0:01:48]} 21. Rc7 {[%clk 0:01:25]}  Bd8 {[%clk 0:01:41]} 22. Rxf7 {[%clk 0:01:22]}  exf4 {[%clk 0:01:41]} 23. Rhxh7 {[%clk 0:00:51]}  Rxh7 {[%clk 0:01:37]} 24. Rxh7 {[%clk 0:00:52]}  Bxg5 {[%clk 0:01:36]} 25. Rh5 {[%clk 0:00:39]}  Rg8 {[%clk 0:01:23]} 26. Kd1 {[%clk 0:00:35]}  f3 {[%clk 0:01:18]} 27. Ke1 {[%clk 0:00:30]}  Bc1 {[%clk 0:01:15]} 28. b3 {[%clk 0:00:24]}  Rg4 {[%clk 0:01:05]} 29. Kf2 {[%clk 0:00:18]}  Rxe4 {[%clk 0:01:04]} 30. Kxf3 {[%clk 0:00:16]}  Re5 {[%clk 0:00:59]} 31. Rh8+ {[%clk 0:00:12]}  Ka7 {[%clk 0:00:59]} 32. c4 {[%clk 0:00:12]}  Rf5+ {[%clk 0:00:53]} 33. Ke4 {[%clk 0:00:12]}  Rf2 {[%clk 0:00:52]} 34. a4 {[%clk 0:00:11]}  Rb2 {[%clk 0:00:41]} 35. a5 {[%clk 0:00:11]}  Bd2 {[%clk 0:00:41]} 36. Rd8 {[%clk 0:00:06]}  Bxa5 {[%clk 0:00:40]} 37. Rxd6 {[%clk 0:00:06]}  Rxb3 {[%clk 0:00:40]} 38. Kd4 {[%clk 0:00:06]}  Rb1 {[%clk 0:00:39]} 39. Rd7 {[%clk 0:00:06]}  Rd1+ {[%clk 0:00:39]} 40. Ke4 {[%clk 0:00:06]}  Re1+ {[%clk 0:00:38]} 41. Kd3 {[%clk 0:00:06]}  Rd1+ {[%clk 0:00:38]} 42. Kc2 {[%clk 0:00:06]}  Rd4 {[%clk 0:00:38]} 43. Kb3 {[%clk 0:00:06]}  Kb8 {[%clk 0:00:37]} 44. Rh7 {[%clk 0:00:05]}  Rd3+ {[%clk 0:00:37]} 45. Kc2 {[%clk 0:00:04]}  Rd2+ {[%clk 0:00:37]} 46. Kb3 {[%clk 0:00:04]}  b5 {[%clk 0:00:29]} 47. Rh8+ {[%clk 0:00:04]}  Kb7 {[%clk 0:00:29]} 48. cxb5 {[%clk 0:00:05]}  Rxd5 {[%clk 0:00:27]} 49. bxa6+ {[%clk 0:00:05]}  Kxa6 {[%clk 0:00:28]} 50. Rh6+ {[%clk 0:00:05]}  Kb5 {[%clk 0:00:28]} 51. Rh8 {[%clk 0:00:05]}  Rd3+ {[%clk 0:00:27]} 52. Kb2 {[%clk 0:00:06]}  Bb4 {[%clk 0:00:25]} 53. Rb8+ {[%clk 0:00:05]}  Kc4 {[%clk 0:00:25]} 54. Rc8+ {[%clk 0:00:05]}  Bc5 {[%clk 0:00:25]} 55. Rc7 {[%clk 0:00:04]}  Rd2+ {[%clk 0:00:24]} 56. Kc1 {[%clk 0:00:05]}  Rh2 {[%clk 0:00:24]} 57. Rc8 {[%clk 0:00:04]}  Kb4 {[%clk 0:00:23]} 58. Rb8+ {[%clk 0:00:04]}  Kc3 {[%clk 0:00:23]} 59. Kb1 {[%clk 0:00:03]}  Bd4 {[%clk 0:00:22]} 60. Rc8+ {[%clk 0:00:03]}  Kd3 {[%clk 0:00:20]} 61. Rd8 {[%clk 0:00:02]}  Rh1+ {[%clk 0:00:20]} 62. Ka2 {[%clk 0:00:02]}  Ra1+ {[%clk 0:00:19]} 63. Kb3 {[%clk 0:00:02]}  Rb1+ {[%clk 0:00:19]} 64. Ka4 {[%clk 0:00:02]}  Kc4 {[%clk 0:00:19]} 65. Rc8+ {[%clk 0:00:00]}  Bc5 {[%clk 0:00:20]} 0-1


[Site "https://www.chess.com"]

[Event "Titled Tuesday Blitz October 31 Early 2023"]
[White "Mishra, Manoj"]
[Black "Brown, Andrew"]
[WhiteFideId "5006007"]
[BlackFideId "3206513"]
[WhiteElo "2184"]
[BlackElo "2540"]
[Result "0-1"]
[Round "3"]
[TimeControl "180+1"]
[Date "2023.10.31"]
[WhiteClock "0:00:23"]
[BlackClock "0:00:44"]
[Board "131"]

1. d4 {[%clk 0:02:54]}  c6 {[%clk 0:03:00]} 2. c4 {[%clk 0:02:53]}  d5 {[%clk 0:03:01]} 3. Nc3 {[%clk 0:02:53]}  Nf6 {[%clk 0:03:01]} 4. Bf4 {[%clk 0:02:51]}  e6 {[%clk 0:03:01]} 5. c5 {[%clk 0:02:50]}  b6 {[%clk 0:02:53]} 6. b4 {[%clk 0:02:50]}  a5 {[%clk 0:02:51]} 7. a3 {[%clk 0:02:50]}  Ba6 {[%clk 0:02:35]} 8. b5 {[%clk 0:02:45]}  Bxb5 {[%clk 0:02:30]} 9. Nxb5 {[%clk 0:02:44]}  cxb5 {[%clk 0:02:29]} 10. e3 {[%clk 0:02:44]}  bxc5 {[%clk 0:02:22]} 11. Bxb5+ {[%clk 0:02:43]}  Nbd7 {[%clk 0:02:22]} 12. Nf3 {[%clk 0:02:28]}  Be7 {[%clk 0:02:19]} 13. dxc5 {[%clk 0:02:16]}  Bxc5 {[%clk 0:02:16]} 14. Qc2 {[%clk 0:02:01]}  O-O {[%clk 0:02:12]} 15. Bxd7 {[%clk 0:01:46]}  Nxd7 {[%clk 0:02:10]} 16. Ng5 {[%clk 0:01:46]}  g6 {[%clk 0:02:05]} 17. h4 {[%clk 0:01:45]}  Qf6 {[%clk 0:01:58]} 18. Rb1 {[%clk 0:01:34]}  Rfc8 {[%clk 0:01:56]} 19. Qd3 {[%clk 0:01:29]}  e5 {[%clk 0:01:25]} 20. h5 {[%clk 0:00:50]}  exf4 {[%clk 0:01:11]} 21. hxg6 {[%clk 0:00:45]}  hxg6 {[%clk 0:01:07]} 22. Qxd5 {[%clk 0:00:38]}  fxe3 {[%clk 0:00:54]} 23. Nxf7 {[%clk 0:00:36]}  Qxf2+ {[%clk 0:00:47]} 24. Kd1 {[%clk 0:00:23]}  e2+ {[%clk 0:00:44]} 0-1


[Site "https://www.chess.com"]

[Event "Titled Tuesday Blitz October 31 Early 2023"]
[White "Richter, Paul"]
[Black "MIM06"]
[WhiteFideId "2046350"]
[WhiteElo "2540"]
[BlackElo "2183"]
[Result "1-0"]
[Round "3"]
[TimeControl "180+1"]
[Date "2023.10.31"]
[WhiteClock "0:00:08"]
[BlackClock "0:00:42"]
[Board "132"]

1. e4 {[%clk 0:03:00]}  c6 {[%clk 0:02:59]} 2. Nc3 {[%clk 0:03:00]}  d5 {[%clk 0:03:00]} 3. Nf3 {[%clk 0:03:00]}  dxe4 {[%clk 0:03:00]} 4. Nxe4 {[%clk 0:03:01]}  Nf6 {[%clk 0:03:01]} 5. Qe2 {[%clk 0:03:02]}  Nxe4 {[%clk 0:03:01]} 6. Qxe4 {[%clk 0:03:03]}  Nd7 {[%clk 0:03:01]} 7. Bc4 {[%clk 0:03:02]}  Nf6 {[%clk 0:03:02]} 8. Ne5 {[%clk 0:03:03]}  e6 {[%clk 0:03:03]} 9. Qe2 {[%clk 0:03:03]}  b5 {[%clk 0:03:03]} 10. Bb3 {[%clk 0:03:02]}  Bd6 {[%clk 0:03:00]} 11. d4 {[%clk 0:02:53]}  Bb7 {[%clk 0:02:59]} 12. O-O {[%clk 0:02:52]}  O-O {[%clk 0:02:59]} 13. Re1 {[%clk 0:02:38]}  a5 {[%clk 0:02:57]} 14. c3 {[%clk 0:02:34]}  a4 {[%clk 0:02:55]} 15. Bc2 {[%clk 0:02:34]}  h6 {[%clk 0:02:56]} 16. Qf3 {[%clk 0:02:28]}  Rc8 {[%clk 0:02:52]} 17. a3 {[%clk 0:02:19]}  Qc7 {[%clk 0:02:49]} 18. Bxh6 {[%clk 0:02:15]}  c5 {[%clk 0:02:37]} 19. Qg3 {[%clk 0:02:14]}  Nh5 {[%clk 0:02:29]} 20. Qg4 {[%clk 0:02:08]}  cxd4 {[%clk 0:02:23]} 21. Qxh5 {[%clk 0:02:00]}  Bxe5 {[%clk 0:02:21]} 22. Rxe5 {[%clk 0:01:10]}  gxh6 {[%clk 0:01:54]} 23. Qxh6 {[%clk 0:01:05]}  f6 {[%clk 0:01:54]} 24. Rxb5 {[%clk 0:00:37]}  Bc6 {[%clk 0:01:42]} 25. Rh5 {[%clk 0:00:30]}  Qg7 {[%clk 0:01:37]} 26. Qxg7+ {[%clk 0:00:31]}  Kxg7 {[%clk 0:01:37]} 27. cxd4 {[%clk 0:00:31]}  Bxg2 {[%clk 0:01:31]} 28. Bxa4 {[%clk 0:00:30]}  Bf3 {[%clk 0:01:22]} 29. Rh3 {[%clk 0:00:29]}  Bd5 {[%clk 0:01:21]} 30. Rg3+ {[%clk 0:00:28]}  Kf7 {[%clk 0:01:20]} 31. Rd1 {[%clk 0:00:20]}  Rg8 {[%clk 0:01:18]} 32. Kf1 {[%clk 0:00:15]}  Rxg3 {[%clk 0:01:14]} 33. fxg3 {[%clk 0:00:15]}  Rh8 {[%clk 0:01:12]} 34. h4 {[%clk 0:00:15]}  Rg8 {[%clk 0:01:09]} 35. Kf2 {[%clk 0:00:15]}  Ra8 {[%clk 0:01:07]} 36. Bc2 {[%clk 0:00:15]}  Rb8 {[%clk 0:01:05]} 37. b4 {[%clk 0:00:15]}  Rc8 {[%clk 0:01:06]} 38. Bd3 {[%clk 0:00:12]}  Rc3 {[%clk 0:01:04]} 39. a4 {[%clk 0:00:12]}  Rb3 {[%clk 0:01:01]} 40. b5 {[%clk 0:00:11]}  Ra3 {[%clk 0:01:01]} 41. b6 {[%clk 0:00:08]}  Rxa4 {[%clk 0:01:01]} 42. Rb1 {[%clk 0:00:09]}  Ra8 {[%clk 0:00:48]} 43. Ke3 {[%clk 0:00:08]}  e5 {[%clk 0:00:44]} 44. dxe5 {[%clk 0:00:07]}  fxe5 {[%clk 0:00:45]} 45. Rb4 {[%clk 0:00:06]}  Rb8 {[%clk 0:00:38]} 46. Be4 {[%clk 0:00:06]}  Ke6 {[%clk 0:00:38]} 47. Bxd5+ {[%clk 0:00:06]}  Kxd5 {[%clk 0:00:39]} 48. h5 {[%clk 0:00:06]}  Kc5 {[%clk 0:00:39]} 49. Rb1 {[%clk 0:00:06]}  Rxb6 {[%clk 0:00:39]} 50. Rxb6 {[%clk 0:00:06]}  Kxb6 {[%clk 0:00:40]} 51. h6 {[%clk 0:00:07]}  Kc5 {[%clk 0:00:41]} 52. h7 {[%clk 0:00:07]}  Kd5 {[%clk 0:00:42]} 53. h8=Q {[%clk 0:00:08]}  Kc5 {[%clk 0:00:42]} 54. Qxe5+ {[%clk 0:00:08]} 1-0


[Site "https://www.chess.com"]

[Event "Titled Tuesday Blitz October 31 Early 2023"]
[White "knightinshiningarmour16"]
[Black "Titichoca Daza, Daniel"]
[BlackFideId "3309550"]
[WhiteElo "2181"]
[BlackElo "2538"]
[Result "0-1"]
[Round "3"]
[TimeControl "180+1"]
[Date "2023.10.31"]
[WhiteClock "0:00:27"]
[BlackClock "0:01:14"]
[Board "133"]

1. d4 {[%clk 0:02:58]}  g6 {[%clk 0:03:00]} 2. c4 {[%clk 0:02:55]}  d6 {[%clk 0:03:00]} 3. Nc3 {[%clk 0:02:55]}  Bg7 {[%clk 0:03:01]} 4. e4 {[%clk 0:02:55]}  Nf6 {[%clk 0:03:01]} 5. f3 {[%clk 0:02:51]}  O-O {[%clk 0:03:02]} 6. Be3 {[%clk 0:02:51]}  e5 {[%clk 0:02:54]} 7. Nge2 {[%clk 0:02:47]}  Re8 {[%clk 0:02:54]} 8. Qd2 {[%clk 0:02:46]}  exd4 {[%clk 0:02:52]} 9. Nxd4 {[%clk 0:02:46]}  c6 {[%clk 0:02:52]} 10. O-O-O {[%clk 0:02:45]}  d5 {[%clk 0:02:51]} 11. cxd5 {[%clk 0:02:44]}  cxd5 {[%clk 0:02:52]} 12. Nxd5 {[%clk 0:02:42]}  Nxd5 {[%clk 0:02:52]} 13. exd5 {[%clk 0:02:42]}  Qxd5 {[%clk 0:02:51]} 14. Kb1 {[%clk 0:02:34]}  Nc6 {[%clk 0:02:25]} 15. Nxc6 {[%clk 0:02:24]}  Qxc6 {[%clk 0:02:22]} 16. Bh6 {[%clk 0:02:07]}  Bf5+ {[%clk 0:02:21]} 17. Ka1 {[%clk 0:02:07]}  Bh8 {[%clk 0:01:56]} 18. Rc1 {[%clk 0:01:33]}  Qb6 {[%clk 0:01:57]} 19. Bg5 {[%clk 0:00:52]}  a5 {[%clk 0:01:45]} 20. Bc4 {[%clk 0:00:50]}  a4 {[%clk 0:01:40]} 21. a3 {[%clk 0:00:39]}  Rac8 {[%clk 0:01:27]} 22. g4 {[%clk 0:00:38]}  Be6 {[%clk 0:01:23]} 23. Bxe6 {[%clk 0:00:36]}  Qxe6 {[%clk 0:01:23]} 24. Rxc8 {[%clk 0:00:35]}  Rxc8 {[%clk 0:01:22]} 25. Rc1 {[%clk 0:00:35]}  Re8 {[%clk 0:01:20]} 26. Qb4 {[%clk 0:00:30]}  Qe2 {[%clk 0:01:15]} 27. Qxa4 {[%clk 0:00:27]}  Qxb2# {[%clk 0:01:14]} 0-1


[Site "https://www.chess.com"]

[Event "Titled Tuesday Blitz October 31 Early 2023"]
[White "Semenova, Alina"]
[Black "ChessRespected"]
[WhiteFideId "24113875"]
[WhiteElo "2147"]
[BlackElo "2536"]
[Result "1-0"]
[Round "3"]
[TimeControl "180+1"]
[Date "2023.10.31"]
[WhiteClock "0:02:09"]
[BlackClock "0:00:00"]
[Board "135"]

1. e4 {[%clk 0:03:00]}  e5 {[%clk 0:02:56]} 2. Nf3 {[%clk 0:02:57]}  Nc6 {[%clk 0:02:56]} 3. d4 {[%clk 0:02:57]}  exd4 {[%clk 0:02:56]} 4. Nxd4 {[%clk 0:02:58]}  Nf6 {[%clk 0:02:54]} 5. Nxc6 {[%clk 0:02:56]}  bxc6 {[%clk 0:02:55]} 6. e5 {[%clk 0:02:57]}  Qe7 {[%clk 0:02:54]} 7. Qe2 {[%clk 0:02:57]}  Nd5 {[%clk 0:02:54]} 8. c4 {[%clk 0:02:58]}  Ba6 {[%clk 0:02:54]} 9. b3 {[%clk 0:02:58]}  g6 {[%clk 0:02:43]} 10. Bb2 {[%clk 0:02:58]}  Bg7 {[%clk 0:02:41]} 11. g3 {[%clk 0:02:59]}  O-O {[%clk 0:02:41]} 12. Bg2 {[%clk 0:02:59]}  Rae8 {[%clk 0:02:41]} 13. O-O {[%clk 0:02:54]}  Bxe5 {[%clk 0:02:40]} 14. Qxe5 {[%clk 0:02:53]}  Qxe5 {[%clk 0:02:41]} 15. Bxe5 {[%clk 0:02:54]}  Rxe5 {[%clk 0:02:41]} 16. f4 {[%clk 0:02:55]}  Re3 {[%clk 0:02:25]} 17. cxd5 {[%clk 0:02:47]}  Bxf1 {[%clk 0:02:26]} 18. Kxf1 {[%clk 0:02:44]}  cxd5 {[%clk 0:02:19]} 19. Bxd5 {[%clk 0:02:39]}  Rfe8 {[%clk 0:02:15]} 20. Nd2 {[%clk 0:02:39]}  Rd3 {[%clk 0:02:15]} 21. Ne4 {[%clk 0:02:18]}  Kg7 {[%clk 0:02:12]} 22. Bc4 {[%clk 0:02:17]}  Rd4 {[%clk 0:02:07]} 23. Nf2 {[%clk 0:02:16]}  d5 {[%clk 0:02:06]} 24. Bb5 {[%clk 0:02:14]}  Rd2 {[%clk 0:02:05]} 25. Bxe8 {[%clk 0:02:09]}  Rxa2 {[%clk 0:00:02]} 26. Rxa2 {[%clk 0:02:09]}  c6 {[%clk 0:00:00]} 27. Bxc6 {[%clk 0:02:09]} 1-0


[Site "https://www.chess.com"]

[Event "Titled Tuesday Blitz October 31 Early 2023"]
[White "Rodriguez, Santiago"]
[Black "Arhan_Anand"]
[WhiteFideId "3000591"]
[WhiteElo "2413"]
[BlackElo "2707"]
[Result "0-1"]
[Round "3"]
[TimeControl "180+1"]
[Date "2023.10.31"]
[WhiteClock "0:01:41"]
[BlackClock "0:02:09"]
[Board "142"]

1. d4 {[%clk 0:02:53]}  f5 {[%clk 0:03:00]} 2. e4 {[%clk 0:02:48]}  fxe4 {[%clk 0:02:59]} 3. Nc3 {[%clk 0:02:48]}  Nf6 {[%clk 0:02:58]} 4. Bg5 {[%clk 0:02:46]}  e6 {[%clk 0:02:50]} 5. Nxe4 {[%clk 0:02:44]}  Be7 {[%clk 0:02:50]} 6. Bxf6 {[%clk 0:02:45]}  Bxf6 {[%clk 0:02:51]} 7. Qh5+ {[%clk 0:02:45]}  g6 {[%clk 0:02:50]} 8. Qh6 {[%clk 0:02:45]}  Qe7 {[%clk 0:02:48]} 9. O-O-O {[%clk 0:02:44]}  Bg7 {[%clk 0:02:47]} 10. Qf4 {[%clk 0:02:44]}  d6 {[%clk 0:02:44]} 11. Nf3 {[%clk 0:02:43]}  Nc6 {[%clk 0:02:43]} 12. Bb5 {[%clk 0:02:41]}  Bd7 {[%clk 0:02:41]} 13. Rhe1 {[%clk 0:02:40]}  O-O-O {[%clk 0:02:35]} 14. d5 {[%clk 0:02:39]}  exd5 {[%clk 0:02:32]} 15. Nc3 {[%clk 0:02:36]}  Qf8 {[%clk 0:02:24]} 16. Qxf8 {[%clk 0:02:31]}  Rhxf8 {[%clk 0:02:25]} 17. Nxd5 {[%clk 0:02:32]}  Bg4 {[%clk 0:02:22]} 18. Re3 {[%clk 0:02:20]}  Bh6 {[%clk 0:02:21]} 19. Rd3 {[%clk 0:01:55]}  Bxf3 {[%clk 0:02:19]} 20. gxf3 {[%clk 0:01:54]}  Rxf3 {[%clk 0:02:17]} 21. Kd1 {[%clk 0:01:47]}  Bxe3 {[%clk 0:02:15]} 22. fxe3 {[%clk 0:01:44]}  Ne5 {[%clk 0:02:14]} 23. Ra3 {[%clk 0:01:41]}  c6 {[%clk 0:02:09]} 24. Be2 {[%clk 0:01:41]} 0-1


[Site "https://www.chess.com"]

[Event "Titled Tuesday Blitz October 31 Early 2023"]
[White "Lee, Jun Hyeok"]
[Black "Fernandez, Michael"]
[WhiteFideId "13202340"]
[BlackFideId "5803560"]
[WhiteElo "2640"]
[BlackElo "2377"]
[Result "1/2-1/2"]
[Round "3"]
[TimeControl "180+1"]
[Date "2023.10.31"]
[WhiteClock "0:00:03"]
[BlackClock "0:00:21"]
[Board "143"]

1. d4 {[%clk 0:03:00]}  d5 {[%clk 0:02:59]} 2. c4 {[%clk 0:03:00]}  c6 {[%clk 0:02:59]} 3. Nf3 {[%clk 0:03:00]}  Nf6 {[%clk 0:03:00]} 4. Nc3 {[%clk 0:03:01]}  e6 {[%clk 0:03:00]} 5. e3 {[%clk 0:03:01]}  Nbd7 {[%clk 0:03:00]} 6. Be2 {[%clk 0:03:01]}  Bd6 {[%clk 0:02:59]} 7. O-O {[%clk 0:03:01]}  O-O {[%clk 0:02:59]} 8. b3 {[%clk 0:03:01]}  Qe7 {[%clk 0:02:58]} 9. Bb2 {[%clk 0:03:00]}  b6 {[%clk 0:02:57]} 10. Bd3 {[%clk 0:02:57]}  Bb7 {[%clk 0:02:47]} 11. Re1 {[%clk 0:02:56]}  dxc4 {[%clk 0:02:41]} 12. bxc4 {[%clk 0:02:53]}  c5 {[%clk 0:02:40]} 13. d5 {[%clk 0:02:46]}  exd5 {[%clk 0:02:36]} 14. Nxd5 {[%clk 0:02:31]}  Nxd5 {[%clk 0:02:29]} 15. cxd5 {[%clk 0:02:32]}  Ne5 {[%clk 0:02:12]} 16. Nxe5 {[%clk 0:02:26]}  Bxe5 {[%clk 0:02:11]} 17. Bxh7+ {[%clk 0:01:47]}  Kxh7 {[%clk 0:02:07]} 18. Qh5+ {[%clk 0:01:48]}  Kg8 {[%clk 0:02:07]} 19. Bxe5 {[%clk 0:01:45]}  Rfe8 {[%clk 0:01:32]} 20. Bb2 {[%clk 0:01:38]}  Rad8 {[%clk 0:01:14]} 21. Rad1 {[%clk 0:01:11]}  Rd6 {[%clk 0:01:08]} 22. e4 {[%clk 0:01:03]}  Rg6 {[%clk 0:00:59]} 23. f3 {[%clk 0:00:56]}  c4 {[%clk 0:00:53]} 24. Bd4 {[%clk 0:00:35]}  Qb4 {[%clk 0:00:52]} 25. Qh4 {[%clk 0:00:20]}  c3 {[%clk 0:00:40]} 26. Qf2 {[%clk 0:00:19]}  Rc8 {[%clk 0:00:37]} 27. Rb1 {[%clk 0:00:18]}  Qa4 {[%clk 0:00:33]} 28. Rbc1 {[%clk 0:00:18]}  c2 {[%clk 0:00:31]} 29. Re2 {[%clk 0:00:17]}  Qxa2 {[%clk 0:00:26]} 30. Rexc2 {[%clk 0:00:17]}  Rxc2 {[%clk 0:00:25]} 31. Qxc2 {[%clk 0:00:17]}  Qa3 {[%clk 0:00:22]} 32. Qc7 {[%clk 0:00:13]}  Qxf3 {[%clk 0:00:20]} 33. Qd8+ {[%clk 0:00:12]}  Kh7 {[%clk 0:00:20]} 34. Qh4+ {[%clk 0:00:12]}  Kg8 {[%clk 0:00:20]} 35. Qd8+ {[%clk 0:00:08]}  Kh7 {[%clk 0:00:20]} 36. Qh4+ {[%clk 0:00:08]}  Kg8 {[%clk 0:00:21]} 37. Qd8+ {[%clk 0:00:03]} 1/2-1/2


[Site "https://www.chess.com"]

[Event "Titled Tuesday Blitz October 31 Early 2023"]
[White "Slade, Theodore"]
[Black "Buscar, Michael"]
[WhiteFideId "426547"]
[BlackFideId "2603616"]
[WhiteElo "2512"]
[BlackElo "2336"]
[Result "1-0"]
[Round "3"]
[TimeControl "180+1"]
[Date "2023.10.31"]
[WhiteClock "0:01:07"]
[BlackClock "0:00:59"]
[Board "145"]

1. d4 {[%clk 0:03:00]}  Nf6 {[%clk 0:02:42]} 2. c4 {[%clk 0:03:00]}  e6 {[%clk 0:02:43]} 3. g3 {[%clk 0:03:01]}  d5 {[%clk 0:02:41]} 4. Bg2 {[%clk 0:03:02]}  c5 {[%clk 0:02:42]} 5. cxd5 {[%clk 0:03:01]}  exd5 {[%clk 0:02:42]} 6. Nf3 {[%clk 0:03:01]}  Nc6 {[%clk 0:02:41]} 7. O-O {[%clk 0:03:00]}  Be7 {[%clk 0:02:42]} 8. dxc5 {[%clk 0:03:00]}  Bxc5 {[%clk 0:02:42]} 9. a3 {[%clk 0:03:01]}  O-O {[%clk 0:02:42]} 10. b4 {[%clk 0:03:01]}  Be7 {[%clk 0:02:42]} 11. Nc3 {[%clk 0:02:56]}  Be6 {[%clk 0:02:37]} 12. Bb2 {[%clk 0:02:54]}  Ne4 {[%clk 0:02:34]} 13. Nd4 {[%clk 0:02:44]}  Nxd4 {[%clk 0:02:20]} 14. Qxd4 {[%clk 0:02:45]}  Bf6 {[%clk 0:02:20]} 15. Qd3 {[%clk 0:02:44]}  Rc8 {[%clk 0:02:12]} 16. Rac1 {[%clk 0:02:21]}  Bf5 {[%clk 0:01:53]} 17. Nxd5 {[%clk 0:01:10]}  Bxb2 {[%clk 0:01:13]} 18. Rxc8 {[%clk 0:01:07]}  Qxc8 {[%clk 0:01:08]} 19. Ne7+ {[%clk 0:01:06]}  Kh8 {[%clk 0:00:59]} 20. Nxc8 {[%clk 0:01:07]} 1-0


[Site "https://www.chess.com"]